bitfinex/quotes_BTCUSD_20240718
["timestamp","ask_amount","ask_price","bid_price","bid_amount"]
[1721336347345,0.215014,63901.0,63886.0,0.002]
[1721336348249,0.058522,63901.0,63887.0,0.002794]
[1721336349805,0.058522,63901.0,63887.0,0.001]
[1721336349948,0.058522,63901.0,63887.0,0.002]
[1721336350570,0.058522,63901.0,63888.0,0.002794]
[1721336350778,0.058522,63901.0,63889.0,0.1408]
[1721336350984,0.158522,63901.0,63891.0,0.002794]
[1721336351186,0.058522,63901.0,63893.0,0.002794]
[1721336353862,0.058522,63901.0,63893.0,0.003794]
[1721336354311,0.058522,63901.0,63893.0,0.004794]
[1721336357634,0.00083,63901.0,63893.0,0.004794]
[1721336359790,0.00083,63901.0,63893.0,0.002]
[1721336370357,0.00064165,63901.0,63893.0,0.002]
[1721336373683,0.00064165,63901.0,63893.0,0.002913]
[1721336375538,0.00064165,63901.0,63894.0,0.1454]
[1721336375783,0.00064165,63901.0,63895.0,0.002794]
[1721336377704,0.00064165,63901.0,63895.0,0.003794]
[1721336378388,0.03262201,63901.0,63895.0,0.003794]
[1721336379112,0.03262201,63901.0,63895.0,0.001]
[1721336379360,0.03262201,63901.0,63895.0,0.002]
[1721336379621,0.00064165,63901.0,63895.0,0.002]
[1721336379842,0.00064165,63901.0,63896.0,0.002794]
[1721336380067,0.00064165,63901.0,63895.0,0.002]
[1721336380289,0.00064165,63901.0,63896.0,0.1441]
[1721336380741,0.00064165,63901.0,63897.0,0.0625]
[1721336380951,0.00064165,63901.0,63898.0,0.0816]
[1721336381216,0.00064165,63901.0,63895.0,0.001]
[1721336381217,0.00064165,63901.0,63900.0,0.0816]
[1721336381450,0.01688936,63901.0,63900.0,0.0816]
[1721336381675,0.02663798,63901.0,63900.0,0.0816]
[1721336382141,0.02663798,63901.0,63900.0,0.1446]
[1721336382905,0.10429658,63901.0,63900.0,0.926072]
[1721336383162,0.09454797,63901.0,63900.0,1.239061]
[1721336383735,0.47736171,63917.0,63910.0,0.156469]
[1721336383954,0.47736171,63917.0,63911.0,0.1427]
[1721336383955,0.07042639,63915.0,63911.0,0.1427]
[1721336384180,0.01624264,63914.0,63911.0,0.1427]
[1721336384408,0.01624264,63914.0,63912.0,0.2176756]
[1721336384663,0.07042639,63915.0,63913.0,0.0628]
[1721336385118,0.01624227,63914.0,63913.0,0.0628]
[1721336385360,0.07042639,63915.0,63913.0,0.0628]
[1721336385818,0.014313,63917.0,63913.0,0.0628]
[1721336386029,0.0162426,63916.0,63913.0,0.0628]
[1721336386253,0.014313,63917.0,63913.0,0.0628]
[1721336386749,0.01624255,63916.0,63913.0,0.0628]
[1721336386992,0.014313,63917.0,63913.0,0.0628]
[1721336387259,0.014313,63917.0,63913.0,0.0638]
[1721336387482,0.014313,63917.0,63913.0,0.0648]
[1721336387707,0.014313,63917.0,63913.0,0.0638]
[1721336388098,0.014313,63917.0,63913.0,0.0648]
[1721336388323,0.014313,63917.0,63913.0,0.0638]
[1721336388557,0.014313,63917.0,63914.0,0.081]
[1721336388823,0.15438174,63916.0,63913.0,0.002]
[1721336389495,0.15438174,63916.0,63913.0,0.001]
[1721336389742,0.15438174,63916.0,63913.0,0.002]
[1721336390199,0.15438174,63916.0,63909.0,0.0618]
[1721336390657,0.15438174,63916.0,63913.0,0.002]
[1721336390911,0.0779,63914.0,63913.0,0.002]
[1721336391139,0.24852507,63914.0,63913.0,0.001]
[1721336391353,0.24852507,63914.0,63905.0,0.0609]
[1721336391580,0.17062507,63913.0,63909.0,0.001]
[1721336391768,0.01624333,63912.0,63905.0,0.0609]
[1721336392022,0.15438174,63911.0,63905.0,0.0609]
[1721336392253,0.01624333,63910.0,63905.0,0.0609]
[1721336392467,0.17062507,63910.0,63905.0,0.0609]
[1721336392695,0.17062507,63910.0,63909.0,0.001]
[1721336392696,0.15438174,63910.0,63909.0,0.001]
[1721336392948,0.17062689,63910.0,63909.0,0.001]
[1721336393162,0.17062689,63910.0,63905.0,0.0609]
[1721336393347,0.01624515,63909.0,63905.0,0.0619]
[1721336393580,0.15428174,63910.0,63905.0,0.0619]
[1721336393823,0.01624522,63909.0,63905.0,0.0609]
[1721336394044,0.15428174,63910.0,63905.0,0.0609]
[1721336394289,0.15428174,63910.0,63909.0,0.001]
[1721336394500,0.17052686,63910.0,63909.0,0.001]
[1721336396744,0.17052686,63910.0,63909.0,0.002]
[1721336398965,0.40579686,63910.0,63909.0,0.002]
[1721336399751,0.71873686,63910.0,63909.0,0.002]
[1721336399995,1.03167686,63910.0,63909.0,0.002]
[1721336400400,0.63993686,63910.0,63909.0,0.002]
[1721336400843,0.95287686,63910.0,63909.0,0.002]
[1721336401239,1.08876775,63910.0,63909.0,0.002]
[1721336401641,1.40170775,63910.0,63909.0,0.002]
[1721336401883,1.49480775,63910.0,63909.0,0.002]
[1721336402455,1.40170775,63910.0,63909.0,0.001]
[1721336402875,1.40170775,63910.0,63909.0,0.002]
[1721336403248,1.26581686,63910.0,63909.0,0.002]
[1721336403449,0.95287686,63910.0,63909.0,0.002]
[1721336403623,0.95287686,63910.0,63909.0,0.001]
[1721336403995,0.95687686,63910.0,63909.0,0.002]
[1721336405129,0.33099686,63910.0,63909.0,0.002]
[1721336405334,0.10478728,63910.0,63909.0,0.002]
[1721336405540,0.06822514,63910.0,63909.0,0.002]
[1721336405953,0.18528081,63910.0,63909.0,0.002]
[1721336406161,0.34175081,63910.0,63909.0,0.0659]
[1721336406460,0.4769,63918.0,63909.0,0.1424]
[1721336406834,0.09364401,63912.0,63909.0,0.1424]
[1721336407040,0.09364401,63911.0,63909.0,0.1424]
[1721336407391,0.256458,63915.0,63909.0,0.1424]
[1721336407392,0.09364401,63912.0,63909.0,0.1424]
[1721336407621,0.09364401,63911.0,63909.0,0.1424]
[1721336407822,0.09364401,63911.0,63909.0,0.1414]
[1721336407997,0.09364401,63911.0,63909.0,0.1424]
[1721336408409,0.09364401,63911.0,63909.0,0.1414]
[1721336409019,0.012,63911.0,63909.0,0.1424]
[1721336409341,0.012,63911.0,63909.0,0.1414]
[1721336409517,0.012,63911.0,63910.0,0.0608]
[1721336410638,0.09364973,63913.0,63910.0,0.0608]
[1721336410970,0.09364973,63913.0,63910.0,0.0618]
[1721336411207,0.09364973,63912.0,63910.0,0.0618]
[1721336411893,0.09364973,63912.0,63910.0,0.001]
[1721336412125,1.1590809,63911.0,63910.0,0.002]
[1721336412343,0.156491,63902.0,63895.0,0.0655]
[1721336412619,0.4045504,63902.0,63895.0,0.0655]
[1721336412829,0.09367766,63901.0,63895.0,0.0655]
[1721336413286,0.31087274,63902.0,63895.0,0.0655]
[1721336413720,0.31087274,63902.0,63895.0,0.0665]
[1721336413721,0.15438174,63902.0,63895.0,0.0665]
[1721336413940,0.29181424,63902.0,63895.0,0.0665]
[1721336414162,0.15438174,63902.0,63895.0,0.0665]
[1721336414435,0.156493,63901.0,63895.0,0.0665]
[1721336414672,0.15438174,63902.0,63895.0,0.0665]
[1721336414875,0.16838174,63902.0,63895.0,0.0675]
[1721336415114,0.09368323,63901.0,63895.0,0.0675]
[1721336415566,0.09368323,63901.0,63895.0,0.0665]
[1721336416036,0.10768323,63901.0,63895.0,0.0665]
[1721336416463,0.014,63901.0,63895.0,0.0665]
[1721336416686,0.10768708,63901.0,63895.0,0.0665]
[1721336417137,0.10768708,63901.0,63895.0,0.0655]
[1721336417357,0.12168708,63901.0,63895.0,0.0665]
[1721336417637,0.31304625,63901.0,63895.0,0.0665]
[1721336417849,0.21935917,63901.0,63895.0,0.001]
[1721336418068,0.1144,63901.0,63895.0,0.001]
[1721336421228,0.26878174,63901.0,63895.0,0.001]
[1721336421448,0.42527374,63901.0,63895.0,0.001]
[1721336422639,0.26878174,63901.0,63895.0,0.001]
[1721336423322,0.42527474,63901.0,63895.0,0.001]
[1721336423835,0.427386,63901.0,63895.0,0.001]
[1721336424057,0.1144,63901.0,63895.0,0.001]
[1721336424526,0.42527374,63901.0,63895.0,0.001]
[1721336424977,0.54233367,63901.0,63895.0,0.001]
[1721336425205,0.26878174,63901.0,63895.0,0.001]
[1721336425481,0.156497,63899.0,63895.0,0.001]
[1721336425703,0.29311242,63900.0,63895.0,0.001]
[1721336426411,0.29311242,63900.0,63895.0,0.002]
[1721336426901,0.29311242,63900.0,63895.0,0.001]
[1721336427381,0.15173068,63900.0,63896.0,0.0602]
[1721336427614,0.013,63900.0,63898.0,0.07717479]
[1721336427872,0.013,63900.0,63899.0,0.1391]
[1721336428121,0.013,63900.0,63899.0,0.16082748]
[1721336428347,0.013,63900.0,63899.0,0.1391]
[1721336428819,0.027,63900.0,63899.0,0.1391]
[1721336429267,0.014,63900.0,63899.0,0.1391]
[1721336429458,0.028,63900.0,63899.0,0.1391]
[1721336429940,0.014,63900.0,63899.0,0.1391]
[1721336430172,0.4769,63907.0,63901.0,0.0602]
[1721336430412,0.4769,63907.0,63902.0,0.002794]
[1721336430631,0.4769,63907.0,63903.0,0.0602]
[1721336431081,0.4769,63907.0,63904.0,0.002794]
[1721336431329,0.4769,63907.0,63905.0,0.0789]
[1721336431801,0.4909,63907.0,63905.0,0.0789]
[1721336433190,0.5039,63907.0,63905.0,0.0789]
[1721336433410,0.5179,63907.0,63906.0,0.0656]
[1721336433641,0.5049,63907.0,63896.0,0.1447]
[1721336433865,0.5049,63907.0,63905.0,0.001]
[1721336433866,0.4769,63907.0,63905.0,0.001]
[1721336434089,0.01624771,63906.0,63905.0,0.001]
[1721336434314,0.5039,63907.0,63905.0,0.001]
[1721336434315,0.4899,63907.0,63905.0,0.001]
[1721336434780,0.5039,63907.0,63905.0,0.001]
[1721336435450,0.01624775,63906.0,63896.0,0.1447]
[1721336435672,0.01624775,63905.0,63896.0,0.1447]
[1721336435895,0.01624775,63904.0,63896.0,0.1447]
[1721336436099,0.4909,63907.0,63896.0,0.1447]
[1721336436404,0.4769,63907.0,63900.0,0.000913]
[1721336436527,0.50573,63907.0,63905.0,0.001]
[1721336436977,0.47773,63907.0,63900.0,0.000913]
[1721336437218,0.49173,63907.0,63900.0,0.000913]
[1721336437439,0.50573,63907.0,63900.0,0.000913]
[1721336437696,0.51973,63907.0,63900.0,0.000913]
[1721336437933,0.01624748,63906.0,63900.0,0.000913]
[1721336438171,0.49173,63907.0,63900.0,0.000913]
[1721336438647,0.47773,63907.0,63900.0,0.000913]
[1721336438923,0.50573,63907.0,63900.0,0.001913]
[1721336440215,0.50573,63907.0,63901.0,0.0654]
[1721336440456,0.50573,63907.0,63900.0,0.001913]
[1721336440457,0.01624683,63906.0,63904.0,0.07717479]
[1721336440683,0.50573,63907.0,63906.0,0.0654]
[1721336440929,0.04507545,63907.0,63906.0,0.0654]
[1721336441135,0.01483,63907.0,63906.0,0.0654]
[1721336441562,0.02883,63907.0,63906.0,0.0654]
[1721336441930,0.00083,63907.0,63906.0,0.0654]
[1721336442334,0.02783,63907.0,63906.0,0.0654]
[1721336442753,0.01483,63907.0,63906.0,0.0654]
[1721336443156,0.04407502,63907.0,63906.0,0.0664]
[1721336444159,0.02783,63907.0,63906.0,0.0664]
[1721336445118,0.04407507,63907.0,63906.0,0.0664]
[1721336445499,0.02783,63907.0,63906.0,0.0664]
[1721336446124,0.04407511,63907.0,63906.0,0.0664]
[1721336447795,0.02783,63907.0,63906.0,0.001]
[1721336453490,0.14501417,63907.0,63906.0,0.001]
[1721336454702,0.02783,63907.0,63906.0,0.001]
[1721336457443,0.14502638,63907.0,63906.0,0.001]
[1721336457657,0.02783,63907.0,63906.0,0.001]
[1721336458083,0.14503129,63907.0,63906.0,0.001]
[1721336460770,0.02783,63907.0,63906.0,0.001]
[1721336461808,0.14503463,63907.0,63906.0,0.001]
[1721336465078,0.14503463,63907.0,63906.0,0.1452]
[1721336465079,0.04407673,63907.0,63906.0,0.1452]
[1721336465723,0.14503463,63907.0,63906.0,0.001]
[1721336465945,0.02783,63907.0,63906.0,0.001]
[1721336466154,0.04407701,63907.0,63906.0,0.001]
[1721336467403,0.16131565,63907.0,63906.0,0.001]
[1721336468519,0.04407701,63907.0,63906.0,0.001]
[1721336468762,0.16131565,63907.0,63906.0,0.001]
[1721336470747,0.27859487,63907.0,63906.0,0.001]
[1721336471173,0.16131565,63907.0,63906.0,0.001]
[1721336474355,0.14506864,63907.0,63906.0,0.001]
[1721336478214,0.54822738,63907.0,63906.0,0.001]
[1721336478452,0.69499038,63907.0,63906.0,0.001]
[1721336479107,0.69173919,63907.0,63900.0,0.000913]
[1721336479315,0.31089355,63906.0,63900.0,0.000913]
[1721336479527,0.03351181,63905.0,63900.0,0.000913]
[1721336479737,0.15438174,63904.0,63900.0,0.000913]
[1721336479945,0.13351181,63903.0,63900.0,0.000913]
[1721336480161,0.18789355,63902.0,63900.0,0.000913]
[1721336480386,0.03351181,63901.0,63900.0,0.000913]
[1721336480811,0.04297769,63901.0,63900.0,0.000913]
[1721336481047,0.2071085,63901.0,63900.0,0.001913]
[1721336481273,0.34793676,63901.0,63900.0,0.001913]
[1721336481736,0.2071085,63901.0,63900.0,0.001913]
[1721336482200,2.1810685,63901.0,63900.0,0.001913]
[1721336482942,2.1950685,63901.0,63900.0,0.001913]
[1721336483170,2.1810685,63901.0,63900.0,0.000913]
[1721336483418,2.1950685,63901.0,63900.0,0.000913]
[1721336483670,2.2090685,63901.0,63900.0,0.000913]
[1721336483906,2.1950685,63901.0,63900.0,0.000913]
[1721336484146,2.19628383,63901.0,63900.0,0.000913]
[1721336484450,2.21028383,63901.0,63900.0,0.000913]
[1721336486798,2.18228383,63901.0,63900.0,0.000913]
[1721336487023,2.49526783,63901.0,63900.0,0.000913]
[1721336487221,2.52326783,63901.0,63900.0,0.000913]
[1721336487550,2.46932574,63901.0,63900.0,0.000913]
[1721336487800,2.52344005,63901.0,63900.0,0.000913]
[1721336488022,2.53319138,63901.0,63900.0,0.000913]
[1721336489838,0.559027,63894.0,63893.0,0.000913]
[1721336490175,2.18044106,63894.0,63893.0,0.000913]
[1721336491018,2.19464112,63894.0,63893.0,0.000913]
[1721336491466,1.85642312,63894.0,63893.0,0.000913]
[1721336491694,1.27812312,63894.0,63893.0,0.000913]
[1721336491898,1.29212312,63894.0,63893.0,0.000913]
[1721336492952,1.30612312,63894.0,63893.0,0.000913]
[1721336493179,1.60514112,63894.0,63893.0,0.000913]
[1721336493551,1.61914112,63894.0,63893.0,0.000913]
[1721336494529,1.56482674,63894.0,63893.0,0.000913]
[1721336494760,1.6194142,63894.0,63893.0,0.000913]
[1721336496061,1.9324322,63894.0,63893.0,0.000913]
[1721336496269,0.813057,63886.0,63882.0,0.0643]
[1721336496470,0.32866538,63885.0,63882.0,0.0643]
[1721336496677,0.156536,63883.0,63882.0,0.0643]
[1721336496882,0.42066938,63883.0,63880.0,0.04694236]
[1721336497047,0.26413338,63882.0,63880.0,0.04694236]
[1721336497247,0.00975164,63881.0,63880.0,0.04694236]
[1721336497458,0.16413338,63881.0,63880.0,0.04694236]
[1721336497899,0.26413473,63881.0,63880.0,0.04694236]
[1721336498304,0.74775773,63881.0,63880.0,0.04694236]
[1721336498510,1.08383973,63881.0,63880.0,0.04694236]
[1721336498714,1.17038879,63881.0,63880.0,0.04694236]
[1721336499546,1.18438879,63881.0,63880.0,0.04694236]
[1721336500255,1.18438879,63881.0,63880.0,0.01022627]
[1721336500486,1.53540197,63881.0,63880.0,0.01022627]
[1721336501394,1.53568719,63881.0,63880.0,0.01113927]
[1721336504594,1.535327,63881.0,63880.0,0.01113927]
[1721336504815,1.53532828,63881.0,63880.0,0.01113927]
[1721336505039,1.54652828,63881.0,63880.0,0.01113927]
[1721336506353,1.282752,63877.0,63873.0,0.0636]
[1721336506577,1.59179328,63877.0,63873.0,0.0636]
[1721336506794,0.969704,63870.0,63869.0,0.0653]
[1721336507012,1.23383988,63870.0,63869.0,0.0653]
[1721336507274,1.25683988,63870.0,63869.0,0.0653]
[1721336507492,0.156572,63868.0,63867.0,0.1452]
[1721336507731,0.16413588,63868.0,63867.0,0.1452]
[1721336508196,0.16413724,63868.0,63867.0,0.1452]
[1721336508664,0.32070924,63868.0,63867.0,0.1452]
[1721336509106,0.33470924,63868.0,63867.0,0.1452]
[1721336510767,0.34870924,63868.0,63867.0,0.1452]
[1721336511241,0.66185424,63868.0,63867.0,0.1452]
[1721336511493,0.65209874,63868.0,63867.0,0.1452]
[1721336511718,0.66185428,63868.0,63867.0,0.1452]
[1721336515045,0.66185423,63868.0,63867.0,0.1452]
[1721336515536,0.19213723,63868.0,63867.0,0.1452]
[1721336516707,0.25485623,63868.0,63867.0,0.1452]
[1721336518090,0.25485579,63868.0,63867.0,0.1452]
[1721336519568,0.090719,63868.0,63867.0,0.1452]
[1721336519794,0.028,63868.0,63867.0,0.1452]
[1721336521635,0.014,63868.0,63867.0,0.1452]
[1721336521863,0.162712,63872.0,63862.0,0.0632]
[1721336522084,0.00975378,63871.0,63864.0,0.1462]
[1721336522297,0.014,63868.0,63866.0,0.1462]
[1721336522557,0.1,63872.0,63868.0,0.0632]
[1721336522780,0.07246772,63871.0,63868.0,0.0632]
[1721336523026,0.00975472,63870.0,63868.0,0.0632]
[1721336523247,0.01663386,63870.0,63868.0,0.0632]
[1721336523488,0.00687914,63870.0,63868.0,0.0632]
[1721336523756,0.00975491,63869.0,63868.0,0.0632]
[1721336524205,0.01662012,63869.0,63868.0,0.0632]
[1721336525123,0.01661995,63869.0,63868.0,0.0632]
[1721336525545,0.03061995,63869.0,63868.0,0.0632]
[1721336526448,0.03056995,63869.0,63868.0,0.0632]
[1721336526705,0.04456995,63869.0,63868.0,0.0632]
[1721336527353,0.03481521,63869.0,63868.0,0.0632]
[1721336527557,0.04457,63869.0,63868.0,0.0632]
[1721336527965,0.19895174,63869.0,63868.0,0.0632]
[1721336528174,0.69166174,63869.0,63868.0,0.0632]
[1721336528374,0.79166174,63869.0,63868.0,0.0632]
[1721336528542,0.5,63866.0,63865.0,0.0645]
[1721336528869,0.67099469,63866.0,63865.0,0.0645]
[1721336529713,1.16372669,63866.0,63865.0,0.0645]
[1721336530111,1.17772669,63866.0,63865.0,0.0645]
[1721336530359,1.19172669,63866.0,63865.0,0.0645]
[1721336530916,1.19172688,63866.0,63865.0,0.0645]
[1721336531138,1.18486872,63866.0,63865.0,0.0645]
[1721336531369,0.71513672,63866.0,63865.0,0.0645]
[1721336531598,0.69213672,63866.0,63865.0,0.0645]
[1721336533872,0.69213672,63866.0,63865.0,0.065413]
[1721336534124,0.69213672,63866.0,63865.0,0.142013]
[1721336534345,0.6921367,63866.0,63865.0,0.142013]
[1721336535650,0.73695537,63866.0,63865.0,0.142013]
[1721336536054,0.6921367,63866.0,63865.0,0.142013]
[1721336536255,0.73695275,63866.0,63865.0,0.142013]
[1721336536452,0.6921367,63866.0,63865.0,0.142013]
[1721336536656,0.73695275,63866.0,63865.0,0.142013]
[1721336537058,0.23695275,63866.0,63865.0,0.142013]
[1721336537252,0.1921367,63866.0,63865.0,0.142013]
[1721336537630,0.23724266,63866.0,63865.0,0.142013]
[1721336537857,0.19213657,63866.0,63865.0,0.142013]
[1721336538081,0.23718576,63866.0,63865.0,0.142013]
[1721336541465,0.18238174,63866.0,63865.0,0.142013]
[1721336541689,0.23724368,63866.0,63865.0,0.142013]
[1721336544083,0.23724368,63866.0,63865.0,0.065413]
[1721336545190,0.18238174,63866.0,63865.0,0.065413]
[1721336545679,0.3330312,63866.0,63865.0,0.065413]
[1721336546106,0.37800633,63866.0,63865.0,0.065413]
[1721336546788,0.23711182,63866.0,63865.0,0.065413]
[1721336547929,0.37800633,63866.0,63865.0,0.065413]
[1721336548389,1.03458333,63866.0,63865.0,0.065413]
[1721336548600,1.03454769,63866.0,63865.0,0.065413]
[1721336550357,0.89361523,63866.0,63865.0,0.065413]
[1721336551738,1.20677023,63866.0,63865.0,0.065413]
[1721336551951,1.20625611,63866.0,63865.0,0.065413]
[1721336554548,1.51941111,63866.0,63865.0,0.065413]
[1721336554778,1.54241111,63866.0,63865.0,0.065413]
[1721336555433,1.54261915,63866.0,63865.0,0.065413]
[1721336558519,1.22946415,63866.0,63865.0,0.065413]
[1721336558744,1.17511374,63866.0,63865.0,0.065413]
[1721336558984,1.54260893,63866.0,63865.0,0.065413]
[1721336561254,1.64260893,63866.0,63865.0,0.065413]
[1721336565728,1.64196307,63866.0,63865.0,0.065413]
[1721336566647,1.64279307,63866.0,63865.0,0.065413]
[1721336567747,1.64279307,63866.0,63865.0,0.040413]
[1721336568876,1.64279307,63866.0,63865.0,0.000913]
[1721336569097,1.64266791,63866.0,63865.0,0.000913]
[1721336570882,1.64266791,63866.0,63865.0,0.065013]
[1721336572694,1.64270281,63866.0,63865.0,0.065013]
[1721336573566,1.80138032,63866.0,63865.0,0.065013]
[1721336573788,1.64270281,63866.0,63865.0,0.065013]
[1721336576068,1.64267383,63866.0,63865.0,0.065013]
[1721336578968,1.62225039,63866.0,63865.0,0.065013]
[1721336579429,1.62262605,63866.0,63865.0,0.065013]
[1721336580323,1.56869074,63866.0,63865.0,0.065013]
[1721336580540,1.62281564,63866.0,63865.0,0.065013]
[1721336582859,1.56869074,63866.0,63865.0,0.065013]
[1721336583111,1.62293737,63866.0,63865.0,0.065013]
[1721336584272,1.78161,63866.0,63865.0,0.065013]
[1721336586336,1.56869074,63866.0,63865.0,0.065013]
[1721336586542,1.78150954,63866.0,63865.0,0.065013]
[1721336587621,1.78150954,63866.0,63865.0,0.000913]
[1721336588043,1.62283089,63866.0,63865.0,0.000913]
[1721336589595,1.56869074,63866.0,63865.0,0.000913]
[1721336589820,1.6231843,63866.0,63865.0,0.000913]
[1721336593126,1.56869074,63866.0,63865.0,0.000913]
[1721336593341,1.5784467,63866.0,63865.0,0.000913]
[1721336593548,1.62349096,63866.0,63865.0,0.000913]
[1721336596502,1.56869074,63866.0,63865.0,0.000913]
[1721336596727,1.62354047,63866.0,63865.0,0.000913]
[1721336600155,1.6235793,63866.0,63865.0,0.000913]
[1721336603490,1.56869074,63866.0,63865.0,0.000913]
[1721336603721,1.62358832,63866.0,63865.0,0.000913]
[1721336603943,1.7822758,63866.0,63865.0,0.000913]
[1721336606904,1.94096299,63866.0,63865.0,0.000913]
[1721336607149,1.7822758,63866.0,63865.0,0.000913]
[1721336608257,1.62358832,63866.0,63865.0,0.063613]
[1721336609386,0.84070132,63866.0,63865.0,0.063613]
[1721336609610,0.84070132,63866.0,63865.0,0.140513]
[1721336610306,0.84060276,63866.0,63865.0,0.140513]
[1721336611242,0.84071319,63866.0,63865.0,0.140513]
[1721336611699,0.84071024,63866.0,63865.0,0.140513]
[1721336613528,0.78580374,63866.0,63865.0,0.140513]
[1721336613761,0.84056786,63866.0,63865.0,0.140513]
[1721336617085,0.84059055,63866.0,63865.0,0.140513]
[1721336617839,0.99927519,63866.0,63865.0,0.140513]
[1721336618746,0.84059055,63866.0,63865.0,0.140513]
[1721336620513,0.997094,63866.0,63865.0,0.140513]
[1721336621942,1.15577515,63866.0,63865.0,0.140513]
[1721336622422,0.997094,63866.0,63865.0,0.140513]
[1721336622658,1.310249,63866.0,63865.0,0.140513]
[1721336623303,1.25553574,63866.0,63865.0,0.140513]
[1721336623511,1.31047958,63866.0,63865.0,0.140513]
[1721336623962,1.31052357,63866.0,63865.0,0.140513]
[1721336627363,1.25553574,63866.0,63865.0,0.140513]
[1721336627575,1.31062134,63866.0,63865.0,0.140513]
[1721336628957,0.99746634,63866.0,63865.0,0.140513]
[1721336630797,0.99785598,63866.0,63865.0,0.140513]
[1721336634337,0.99812437,63866.0,63865.0,0.140513]
[1721336636602,0.81854737,63866.0,63865.0,0.140513]
[1721336637741,0.81862857,63866.0,63865.0,0.140513]
[1721336640736,0.76280374,63866.0,63865.0,0.140513]
[1721336640959,0.81857706,63866.0,63865.0,0.140513]
[1721336644472,0.76280374,63866.0,63865.0,0.140513]
[1721336655735,0.91938074,63866.0,63865.0,0.140513]
[1721336663717,0.97521096,63866.0,63865.0,0.140513]
[1721336664372,0.97523628,63866.0,63865.0,0.140513]
[1721336667720,0.91938074,63866.0,63865.0,0.140513]
[1721336667931,0.97524892,63866.0,63865.0,0.140513]
[1721336668614,1.28840392,63866.0,63865.0,0.140513]
[1721336671152,1.23253574,63866.0,63865.0,0.140513]
[1721336671385,1.27999309,63866.0,63865.0,0.140513]
[1721336671595,1.29006482,63866.0,63865.0,0.140513]
[1721336674587,1.29006874,63866.0,63865.0,0.140513]
[1721336677993,1.23253574,63866.0,63865.0,0.140513]
[1721336678216,1.29005782,63866.0,63865.0,0.140513]
[1721336681608,1.29006919,63866.0,63865.0,0.140513]
[1721336681824,1.30014316,63866.0,63865.0,0.140513]
[1721336685110,1.30013501,63866.0,63865.0,0.140513]
[1721336688510,1.3002142,63866.0,63865.0,0.140513]
[1721336689831,1.29014023,63866.0,63865.0,0.140513]
[1721336694714,0.97698523,63866.0,63865.0,0.140513]
[1721336695157,0.91938074,63866.0,63865.0,0.140513]
[1721336695387,0.97684211,63866.0,63865.0,0.140513]
[1721336695838,1.28999711,63866.0,63865.0,0.140513]
[1721336697488,1.44875487,63866.0,63865.0,0.140513]
[1721336697965,1.94148787,63866.0,63861.0,0.0647]
[1721336698192,1.94148787,63866.0,63856.0,0.1434]
[1721336698193,0.156599,63857.0,63856.0,0.1434]
[1721336698417,0.68164111,63857.0,63856.0,0.1434]
[1721336698640,0.80028641,63857.0,63856.0,0.1434]
[1721336699555,0.81428641,63857.0,63856.0,0.1434]
[1721336700506,1.12748541,63857.0,63856.0,0.1434]
[1721336701204,1.12748541,63857.0,63845.0,0.009163]
[1721336701205,0.156617,63850.0,63845.0,0.009163]
[1721336701424,0.11747415,63848.0,63845.0,0.009163]
[1721336701647,0.01958404,63847.0,63845.0,0.009163]
[1721336701876,0.156615,63851.0,63846.0,0.1427]
[1721336702122,0.11747255,63848.0,63846.0,0.1427]
[1721336702368,0.01958829,63847.0,63846.0,0.1427]
[1721336702614,0.03358829,63850.0,63845.0,0.009163]
[1721336702847,0.11745093,63846.0,63845.0,0.009163]
[1721336703084,0.13703922,63846.0,63845.0,0.009163]
[1721336703304,0.13703922,63846.0,63845.0,0.151863]
[1721336703548,0.01958829,63846.0,63845.0,0.151863]
[1721336705194,0.01974174,63846.0,63845.0,0.151863]
[1721336705621,0.156615,63851.0,63846.0,0.1402]
[1721336705878,0.156615,63851.0,63845.0,0.009163]
[1721336705879,0.01984172,63850.0,63848.0,0.0611]
[1721336706123,0.01984172,63850.0,63849.0,0.1402]
[1721336708606,0.03384172,63850.0,63849.0,0.1402]
[1721336709052,0.03392472,63850.0,63849.0,0.1402]
[1721336709326,0.04792472,63850.0,63849.0,0.1402]
[1721336709554,0.04792472,63850.0,63849.0,0.1551363]
[1721336709776,0.028,63850.0,63849.0,0.35951804]
[1721336710687,0.062713,63871.0,63851.0,0.05]
[1721336710895,0.062713,63871.0,63859.0,0.1439]
[1721336710896,0.01985319,63865.0,63859.0,0.1439]
[1721336711102,0.01985319,63865.0,63862.0,0.0614]
[1721336711318,0.01985319,63865.0,63864.0,0.0614]
[1721336711531,0.01985319,63865.0,63864.0,0.1439]
[1721336712165,0.062713,63871.0,63864.0,0.1439]
[1721336712393,0.02016588,63865.0,63856.0,0.1372]
[1721336712652,0.03416588,63865.0,63859.0,0.1467]
[1721336712849,0.02016588,63864.0,63858.0,0.1467]
[1721336713577,0.02016588,63863.0,63858.0,0.1467]
[1721336713812,0.062713,63871.0,63858.0,0.1467]
[1721336713813,0.02016588,63862.0,63858.0,0.1467]
[1721336714034,0.02016588,63862.0,63857.0,0.03718879]
[1721336714035,0.02016588,63861.0,63859.0,0.1399]
[1721336714282,0.02016588,63860.0,63859.0,0.01802201]
[1721336714517,0.02016588,63860.0,63857.0,0.03718879]
[1721336714731,0.02016588,63859.0,63858.0,0.1444]
[1721336714975,0.03509615,63863.0,63859.0,0.1444]
[1721336715227,0.02109615,63862.0,63860.0,0.1444]
[1721336715407,0.014,63861.0,63860.0,0.1444]
[1721336715896,0.02123167,63862.0,63859.0,0.1407]
[1721336716121,0.02123167,63862.0,63859.0,0.01788888]
[1721336716308,0.02323167,63861.0,63860.0,0.1407]
[1721336716977,0.02523167,63861.0,63860.0,0.1417]
[1721336718065,0.03923167,63861.0,63860.0,0.1417]
[1721336719165,0.018,63861.0,63860.0,0.1417]
[1721336719380,0.03923897,63861.0,63860.0,0.1417]
[1721336720098,0.03923897,63861.0,63860.0,0.15958888]
[1721336722905,0.04038915,63861.0,63860.0,0.15958888]